[Event "36th European Club Cup 2021"]
[Site "Struga"]
[Date "2021.09.19"]
[Round "2.34"]
[White "Skuhala, Jernej"]
[Black "Thybo, Jesper Sondergaard"]
[Result "0-1"]
[ECO "C60"]
[WhiteElo "2351"]
[BlackElo "2587"]
[Annotator "ChessBase"]
[PlyCount "92"]
[EventDate "2021.09.18"]
[EventType "team-tourn"]
[EventCountry "MKD"]
[SourceTitle "playchess.com"]
[Source "ChessBase"]
[SourceQuality "1"]
[TimeControl "40/5400+30:1800+30"]

1. e4 {[%emt 0:00:03]} e5 {[%emt 0:00:11]} 2. Nf3 {[%emt 0:00:16]} Nc6 {
[%emt 0:00:22]} 3. Bb5 {[%emt 0:00:15]} g6 {[%emt 0:00:17]} 4. Nc3 {[%emt 0:02:
58]} Bg7 {[%emt 0:01:23]} 5. d3 {[%emt 0:02:28]} Nge7 {[%emt 0:03:00]} 6. Bg5 {
[%emt 0:05:20]} h6 {[%emt 0:04:55]} 7. Bh4 {[%emt 0:07:29]} O-O {[%emt 0:10:29]
} 8. g4 {[%emt 0:02:21]} d5 {[%emt 0:15:51]} 9. Bxc6 {[%emt 0:10:14]} bxc6 {
[%emt 0:01:09]} 10. h3 {[%emt 0:00:26]} Be6 {[%emt 0:08:11]} 11. Qd2 {[%emt 0:
02:32]} Qd6 {[%emt 0:01:49]} 12. O-O-O {[%emt 0:02:59]} d4 {[%emt 0:08:53]} 13.
Ne2 {[%emt 0:00:09]} Rfb8 {[%emt 0:05:57]} 14. Kb1 {[%emt 0:25:21]} Nd5 {
[%emt 0:07:43]} 15. c4 {[%emt 0:11:51]} Nb6 {[%emt 0:06:11]} 16. Qc2 {[%emt 0:
03:31]} Qb4 {[%emt 0:01:14]} 17. Nd2 {[%emt 0:02:24]} g5 {[%emt 0:02:57]} 18.
Bg3 {[%emt 0:00:23]} Rb7 {[%emt 0:01:08]} 19. Nb3 {[%emt 0:02:57]} a5 {[%emt 0:
04:50]} 20. Qd2 {[%emt 0:01:25]} Qf8 {[%emt 0:00:51]} 21. Nxa5 {[%emt 0:05:30]}
Rba7 {[%emt 0:00:19]} 22. Nb3 {[%emt 0:00:06]} Rxa2 {[%emt 0:00:41]} 23. Nec1 {
[%emt 0:00:09]} R2a4 {[%emt 0:02:02]} 24. h4 {[%emt 0:00:24]} f6 {[%emt 0:00:
43]} 25. f3 {[%emt 0:00:37]} Rb8 {[%emt 0:03:50]} 26. hxg5 {[%emt 0:00:39]}
fxg5 {[%emt 0:00:23]} 27. Qh2 {[%emt 0:00:41]} Nd7 {[%emt 0:00:33]} 28. Rdf1 {
[%emt 0:04:43]} Rab4 {[%emt 0:01:12]} 29. Qc2 {[%emt 0:00:23]} R8b7 {[%emt 0:
01:08]} 30. Be1 {[%emt 0:01:05]} R4b6 {[%emt 0:00:08]} 31. Rh2 {[%emt 0:02:31]}
Qa8 {[%emt 0:03:15]} 32. Na5 {[%emt 0:00:43]} Ra7 {[%emt 0:00:25]} 33. Ncb3 {
[%emt 0:00:02]} Rba6 {[%emt 0:02:46]} 34. Rfh1 {[%emt 0:00:09]} Qf8 {[%emt 0:
00:37]} 35. Rh3 {[%emt 0:00:47]} Qf6 {[%emt 0:00:49]} 36. Qh2 {[%emt 0:00:52]}
Bf7 {[%emt 0:00:34]} 37. Bd2 {[%emt 0:02:30]} c5 {[%emt 0:00:25]} 38. Qe2 {
[%emt 0:01:11]} Nf8 {[%emt 0:00:30]} 39. Nxc5 {[%emt 0:00:32]} Rxa5 {[%emt 0:
00:14]} 40. Bxa5 {[%emt 0:00:00]} Rxa5 {[%emt 0:00:00]} 41. Nb3 {[%emt 0:05:45]
} Ra8 {[%emt 0:01:53]} 42. Kc2 {[%emt 0:05:45]} Ne6 {[%emt 0:00:41]} 43. Qh2 {
[%emt 0:00:37]} Kh7 {[%emt 0:02:30]} 44. Ra1 {[%emt 0:00:13]} Rxa1 {[%emt 0:01:
39]} 45. Nxa1 {[%emt 0:00:03]} Nf4 {[%emt 0:00:09]} 46. Rg3 {[%emt 0:00:03]}
Qa6 {[%emt 0:00:18]} 0-1

[Event "36th European Club Cup 2021"]
[Site "Struga"]
[Date "2021.09.19"]
[Round "2.35"]
[White "Rozentalis, Eduardas"]
[Black "Buzeti, Jernej"]
[Result "1-0"]
[ECO "B52"]
[WhiteElo "2509"]
[BlackElo "2236"]
[Annotator "ChessBase"]
[PlyCount "57"]
[EventDate "2021.09.18"]
[EventType "team-tourn"]
[EventCountry "MKD"]
[SourceTitle "playchess.com"]
[Source "ChessBase"]
[SourceQuality "1"]
[TimeControl "40/5400+30:1800+30"]

1. e4 {[%emt 0:00:04]} c5 {[%emt 0:00:14]} 2. Nf3 {[%emt 0:00:16]} d6 {[%emt 0:
00:26]} 3. Bb5+ {[%emt 0:01:59]} Bd7 {[%emt 0:01:40]} 4. Bxd7+ {[%emt 0:00:42]}
Qxd7 {[%emt 0:00:08]} 5. O-O {[%emt 0:00:22]} Nf6 {[%emt 0:00:37]} 6. e5 {
[%emt 0:00:59]} dxe5 {[%emt 0:01:27]} 7. Nxe5 {[%emt 0:00:32]} Qc8 {[%emt 0:00:
52]} 8. Qf3 {[%emt 0:01:16]} e6 {[%emt 0:01:32]} 9. Nc3 {[%emt 0:01:41]} Be7 {
[%emt 0:01:55]} 10. d3 {[%emt 0:01:08]} O-O {[%emt 0:00:19]} 11. Bf4 {[%emt 0:
01:26]} Nfd7 {[%emt 0:36:25]} 12. Qg3 {[%emt 0:19:17]} Nxe5 {[%emt 0:11:54]}
13. Bxe5 {[%emt 0:00:33]} f6 {[%emt 0:00:09]} 14. Bxb8 {[%emt 0:00:50]} Qxb8 {
[%emt 0:08:10]} 15. Qg4 {[%emt 0:01:43]} Qd6 {[%emt 0:03:20]} 16. Rae1 {
[%emt 0:07:58]} f5 {[%emt 0:04:27]} 17. Qc4 {[%emt 0:02:10]} Kf7 {[%emt 0:04:
33]} 18. Nb5 {[%emt 0:14:48]} Qc6 {[%emt 0:15:38]} 19. Re5 {[%emt 0:04:25]} a6
{[%emt 0:00:23]} 20. Rxf5+ {[%emt 0:03:43]} Bf6 {[%emt 0:00:12]} 21. Nc3 {
[%emt 0:01:01]} b5 {[%emt 0:04:10]} 22. Rxc5 {[%emt 0:02:35]} bxc4 {[%emt 0:01:
13]} 23. Rxc6 {[%emt 0:00:09]} Rfc8 {[%emt 0:00:59]} 24. Rxc8 {[%emt 0:02:21]}
Rxc8 {[%emt 0:00:06]} 25. Ne4 {[%emt 0:00:06]} Rc6 {[%emt 0:01:35]} 26. Nxf6 {
[%emt 0:01:55]} gxf6 {[%emt 0:00:07]} 27. dxc4 {[%emt 0:00:06]} Rxc4 {[%emt 0:
00:14]} 28. Rc1 {[%emt 0:00:22]} Rd4 {[%emt 0:00:16]} 29. Kf1 {[%emt 0:00:07]}
1-0

[Event "36th European Club Cup 2021"]
[Site "Struga"]
[Date "2021.09.19"]
[Round "2.36"]
[White "Bratkovic, Sham"]
[Black "Chatalbashev, Boris"]
[Result "1-0"]
[ECO "B09"]
[WhiteElo "2213"]
[BlackElo "2530"]
[Annotator "ChessBase"]
[PlyCount "91"]
[EventDate "2021.09.18"]
[EventType "team-tourn"]
[EventCountry "MKD"]
[SourceTitle "playchess.com"]
[Source "ChessBase"]
[SourceQuality "1"]
[TimeControl "40/5400+30:1800+30"]

1. e4 {[%emt 0:00:06]} g6 {[%emt 0:00:05]} 2. d4 {[%emt 0:00:33]} Bg7 {[%emt 0:
00:03]} 3. Nc3 {[%emt 0:00:16]} d6 {[%emt 0:00:06]} 4. f4 {[%emt 0:00:56]} Nf6
{[%emt 0:00:06]} 5. Nf3 {[%emt 0:00:48]} O-O {[%emt 0:00:08]} 6. Bd3 {[%emt 0:
01:35]} Nc6 {[%emt 0:01:01]} 7. e5 {[%emt 0:02:12]} dxe5 {[%emt 0:00:09]} 8.
fxe5 {[%emt 0:00:09]} Nh5 {[%emt 0:00:18]} 9. Be2 {[%emt 0:04:22]} Bg4 {
[%emt 0:01:38]} 10. Be3 {[%emt 0:02:45]} f6 {[%emt 0:00:10]} 11. exf6 {[%emt 0:
00:54]} exf6 {[%emt 0:00:26]} 12. O-O {[%emt 0:01:46]} Qd6 {[%emt 0:02:03]} 13.
Qd2 {[%emt 0:05:18]} Rae8 {[%emt 0:09:44]} 14. Rad1 {[%emt 0:09:30]} f5 {
[%emt 0:03:19]} 15. Bf2 {[%emt 0:13:00]} a6 {[%emt 0:08:50]} 16. h3 {[%emt 0:
10:42]} Bxf3 {[%emt 0:01:56]} 17. Bxf3 {[%emt 0:00:15]} Nf4 {[%emt 0:19:22]}
18. Ne2 {[%emt 0:08:45]} Bh6 {[%emt 0:10:07]} 19. Nxf4 {[%emt 0:01:22]} Bxf4 {
[%emt 0:00:04]} 20. Qd3 {[%emt 0:01:39]} g5 {[%emt 0:03:00]} 21. Qb3+ {[%emt 0:
07:38]} Kg7 {[%emt 0:03:30]} 22. Qxb7 {[%emt 0:03:50]} Nb4 {[%emt 0:02:07]} 23.
c3 {[%emt 0:01:57]} Rb8 {[%emt 0:02:28]} 24. Qa7 {[%emt 0:00:15]} Nc2 {[%emt 0:
01:36]} 25. d5 {[%emt 0:04:25]} Rxb2 {[%emt 0:06:24]} 26. c4 {[%emt 0:02:28]}
Rf7 {[%emt 0:05:50]} 27. Rd3 {[%emt 0:04:52]} g4 {[%emt 0:05:14]} 28. Bd1 {
[%emt 0:01:54]} Nb4 {[%emt 0:07:24]} 29. Bc5 {[%emt 0:03:29]} Qg6 {[%emt 0:06:
08]} 30. Bxb4 {[%emt 0:01:53]} Rxg2+ {[%emt 0:01:18]} 31. Kxg2 {[%emt 0:00:50]}
gxh3+ {[%emt 0:00:02]} 32. Kxh3 {[%emt 0:03:26]} Qh6+ {[%emt 0:00:01]} 33. Kg2
{[%emt 0:00:07]} Qh2+ {[%emt 0:00:30]} 34. Kf3 {[%emt 0:00:05]} Qg3+ {[%emt 0:
00:06]} 35. Ke2 {[%emt 0:00:08]} Qg2+ {[%emt 0:00:02]} 36. Rf2 {[%emt 0:01:16]}
Qe4+ {[%emt 0:00:03]} 37. Re3 {[%emt 0:00:21]} Qxc4+ {[%emt 0:00:21]} 38. Kf3 {
[%emt 0:00:57]} Bxe3 {[%emt 0:02:47]} 39. Rg2+ {[%emt 0:01:20]} Bg5 {[%emt 0:
00:23]} 40. Rxg5+ {[%emt 0:00:00]} Kh6 {[%emt 0:00:00]} 41. Rg1 {[%emt 0:08:59]
} Qe4+ {[%emt 0:10:55]} 42. Kf2 {[%emt 0:02:16]} Qh4+ {[%emt 0:00:29]} 43. Kf1
{[%emt 0:01:28]} Qh3+ {[%emt 0:00:19]} 44. Rg2 {[%emt 0:01:52]} Qd3+ {[%emt 0:
07:52]} 45. Be2 {[%emt 0:01:10]} Qb1+ {[%emt 0:00:41]} 46. Be1 {[%emt 0:01:09]}
1-0

[Event "36th European Club Cup 2021"]
[Site "Struga"]
[Date "2021.09.19"]
[Round "2.40"]
[White "Postny, Evgeny"]
[Black "Podlesnik, Bogdan"]
[Result "1-0"]
[ECO "A60"]
[WhiteElo "2564"]
[BlackElo "2327"]
[Annotator "ChessBase"]
[PlyCount "51"]
[EventDate "2021.09.18"]
[EventType "team-tourn"]
[EventCountry "MKD"]
[SourceTitle "playchess.com"]
[Source "ChessBase"]
[SourceQuality "1"]
[TimeControl "40/5400+30:1800+30"]

1. d4 {[%emt 0:00:07]} Nf6 {[%emt 0:00:37]} 2. c4 {[%emt 0:00:04]} e6 {[%emt 0:
00:01]} 3. g3 {[%emt 0:00:09]} c5 {[%emt 0:00:07]} 4. d5 {[%emt 0:00:11]} exd5
{[%emt 0:00:06]} 5. cxd5 {[%emt 0:00:05]} b5 {[%emt 0:00:06]} 6. Nf3 {[%emt 0:
00:37]} d6 {[%emt 0:00:36]} 7. e4 {[%emt 0:00:51]} a6 {[%emt 0:00:11]} 8. a4 {
[%emt 0:00:59]} Qe7 {[%emt 0:03:51]} 9. Bd3 {[%emt 0:05:54]} b4 {[%emt 0:08:51]
} 10. O-O {[%emt 0:05:57]} Bg4 {[%emt 0:02:49]} 11. Nbd2 {[%emt 0:05:35]} Nfd7
{[%emt 0:01:52]} 12. Re1 {[%emt 0:09:35]} g6 {[%emt 0:04:45]} 13. e5 {[%emt 0:
12:38]} dxe5 {[%emt 0:00:53]} 14. h3 {[%emt 0:00:41]} Bxh3 {[%emt 0:04:24]} 15.
d6 {[%emt 0:01:56]} Qxd6 {[%emt 0:01:31]} 16. Nc4 {[%emt 0:07:57]} Qc7 {
[%emt 0:01:13]} 17. Nfxe5 {[%emt 0:02:15]} Nxe5 {[%emt 0:02:58]} 18. Bf4 {
[%emt 0:08:22]} Bg7 {[%emt 0:08:05]} 19. Rxe5+ {[%emt 0:02:14]} Bxe5 {[%emt 0:
00:31]} 20. Bxe5 {[%emt 0:00:05]} Qd7 {[%emt 0:03:27]} 21. Bxh8 {[%emt 0:00:34]
} f5 {[%emt 0:00:43]} 22. Kh2 {[%emt 0:05:44]} f4 {[%emt 0:01:31]} 23. Qf3 {
[%emt 0:00:46]} fxg3+ {[%emt 0:01:56]} 24. fxg3 {[%emt 0:00:13]} Ra7 {[%emt 0:
00:32]} 25. Re1+ {[%emt 0:00:37]} Be6 {[%emt 0:00:05]} 26. Qf6 {[%emt 0:00:51]}
1-0

[Event "36th European Club Cup 2021"]
[Site "Struga"]
[Date "2021.09.19"]
[Round "2.41"]
[White "Zlatkov, Anton"]
[Black "Huzman, Alexander"]
[Result "0-1"]
[ECO "B14"]
[WhiteElo "2132"]
[BlackElo "2547"]
[Annotator "ChessBase"]
[PlyCount "46"]
[EventDate "2021.09.18"]
[EventType "team-tourn"]
[EventCountry "MKD"]
[SourceTitle "playchess.com"]
[Source "ChessBase"]
[SourceQuality "1"]
[TimeControl "40/5400+30:1800+30"]

1. e4 {[%emt 0:02:00]} c6 {[%emt 0:00:07]} 2. d4 {[%emt 0:00:24]} d5 {[%emt 0:
00:05]} 3. exd5 {[%emt 0:00:14]} cxd5 {[%emt 0:00:04]} 4. c4 {[%emt 0:00:07]}
Nf6 {[%emt 0:00:30]} 5. Nc3 {[%emt 0:00:17]} g6 {[%emt 0:00:05]} 6. Qb3 {
[%emt 0:02:08]} Bg7 {[%emt 0:00:36]} 7. cxd5 {[%emt 0:01:11]} O-O {[%emt 0:00:
20]} 8. Be2 {[%emt 0:02:31]} Na6 {[%emt 0:02:20]} 9. Bf3 {[%emt 0:00:34]} Qb6 {
[%emt 0:02:21]} 10. Qxb6 {[%emt 0:07:39]} axb6 {[%emt 0:01:55]} 11. Bf4 {
[%emt 0:02:05]} Nb4 {[%emt 0:03:31]} 12. Kd2 {[%emt 0:00:38]} Rd8 {[%emt 0:00:
11]} 13. Bc7 {[%emt 0:11:20]} Rd7 {[%emt 0:03:24]} 14. Bxb6 {[%emt 0:02:34]}
Nfxd5 {[%emt 0:10:07]} 15. Nxd5 {[%emt 0:06:21]} Nxd5 {[%emt 0:00:19]} 16. Bxd5
{[%emt 0:01:36]} Rxd5 {[%emt 0:00:18]} 17. Nf3 {[%emt 0:18:40]} Rb5 {[%emt 0:
01:11]} 18. Bc5 {[%emt 0:00:36]} Rxb2+ {[%emt 0:00:13]} 19. Ke3 {[%emt 0:04:02]
} Bh6+ {[%emt 0:02:32]} 20. Kd3 {[%emt 0:00:09]} Rxf2 {[%emt 0:00:19]} 21. Bxe7
{[%emt 0:03:41]} Bf5+ {[%emt 0:03:41]} 22. Kc3 {[%emt 0:01:22]} Rc8+ {[%emt 0:
01:44]} 23. Kb3 {[%emt 0:00:43]} Be6+ {[%emt 0:02:09]} 0-1

[Event "36th European Club Cup 2021"]
[Site "Struga"]
[Date "2021.09.19"]
[Round "2.44"]
[White "Dudin, Gleb"]
[Black "Urkedal, Frode Olav Olsen"]
[Result "1-0"]
[ECO "A13"]
[WhiteElo "2434"]
[BlackElo "2568"]
[Annotator "ChessBase"]
[PlyCount "95"]
[EventDate "2021.09.18"]
[EventType "team-tourn"]
[EventCountry "MKD"]
[SourceTitle "playchess.com"]
[Source "ChessBase"]
[SourceQuality "1"]
[TimeControl "40/5400+30:1800+30"]

1. c4 {[%emt 0:00:35]} Nf6 {[%emt 0:00:25]} 2. Nf3 {[%emt 0:00:59]} e6 {
[%emt 0:04:00]} 3. g3 {[%emt 0:01:25]} d5 {[%emt 0:00:42]} 4. Bg2 {[%emt 0:00:
41]} dxc4 {[%emt 0:04:39]} 5. Qa4+ {[%emt 0:00:49]} Bd7 {[%emt 0:01:21]} 6.
Qxc4 {[%emt 0:00:40]} c5 {[%emt 0:00:08]} 7. Ne5 {[%emt 0:05:24]} Qc8 {[%emt 0:
00:07]} 8. Qd3 {[%emt 0:02:33]} Nc6 {[%emt 0:04:54]} 9. Nxd7 {[%emt 0:01:00]}
Nxd7 {[%emt 0:00:29]} 10. O-O {[%emt 0:03:10]} Be7 {[%emt 0:00:38]} 11. Nc3 {
[%emt 0:02:40]} O-O {[%emt 0:00:12]} 12. Qc2 {[%emt 0:11:42]} Rd8 {[%emt 0:04:
23]} 13. d3 {[%emt 0:01:42]} Nd4 {[%emt 0:02:04]} 14. Qd1 {[%emt 0:06:04]} Nf6
{[%emt 0:08:30]} 15. Bd2 {[%emt 0:21:34]} Qd7 {[%emt 0:00:38]} 16. Rc1 {
[%emt 0:01:40]} Rac8 {[%emt 0:00:29]} 17. Ne4 {[%emt 0:02:00]} b6 {[%emt 0:11:
11]} 18. Bc3 {[%emt 0:04:45]} Nxe4 {[%emt 0:06:00]} 19. Bxe4 {[%emt 0:02:29]}
Bg5 {[%emt 0:03:31]} 20. e3 {[%emt 0:04:11]} Nb5 {[%emt 0:05:24]} 21. Qh5 {
[%emt 0:03:37]} h6 {[%emt 0:01:53]} 22. h4 {[%emt 0:05:40]} Nxc3 {[%emt 0:03:
48]} 23. bxc3 {[%emt 0:02:54]} Be7 {[%emt 0:00:15]} 24. d4 {[%emt 0:01:21]} b5
{[%emt 0:02:35]} 25. Rfd1 {[%emt 0:03:01]} Qe8 {[%emt 0:05:51]} 26. Qf3 {
[%emt 0:01:42]} a5 {[%emt 0:01:03]} 27. h5 {[%emt 0:00:58]} Bf6 {[%emt 0:01:51]
} 28. Rc2 {[%emt 0:03:32]} Rc7 {[%emt 0:01:48]} 29. Rb1 {[%emt 0:01:06]} Rdc8 {
[%emt 0:01:58]} 30. Rcb2 {[%emt 0:03:09]} b4 {[%emt 0:01:00]} 31. cxb4 {
[%emt 0:00:52]} cxb4 {[%emt 0:00:12]} 32. Kg2 {[%emt 0:00:07]} Rc3 {[%emt 0:00:
10]} 33. Rd2 {[%emt 0:00:19]} Rd8 {[%emt 0:01:57]} 34. d5 {[%emt 0:01:19]} exd5
{[%emt 0:00:47]} 35. Bxd5 {[%emt 0:00:21]} Rcc8 {[%emt 0:01:45]} 36. Rbd1 {
[%emt 0:00:32]} a4 {[%emt 0:01:10]} 37. Qf5 {[%emt 0:01:39]} Rb8 {[%emt 0:02:
15]} 38. e4 {[%emt 0:00:31]} b3 {[%emt 0:00:41]} 39. axb3 {[%emt 0:00:08]} axb3
{[%emt 0:00:03]} 40. e5 {[%emt 0:00:00]} Bg5 {[%emt 0:00:00]} 41. f4 {[%emt 0:
05:20]} Be7 {[%emt 0:02:38]} 42. Be4 {[%emt 0:17:41]} Kf8 {[%emt 0:00:04]} 43.
Rd7 {[%emt 0:05:21]} Rxd7 {[%emt 0:11:14]} 44. Rxd7 {[%emt 0:00:06]} Ra8 {
[%emt 0:00:10]} 45. e6 {[%emt 0:03:12]} Ra2+ {[%emt 0:04:27]} 46. Kh3 {[%emt 0:
01:22]} f6 {[%emt 0:02:42]} 47. g4 {[%emt 0:01:00]} g6 {[%emt 0:03:55]} 48.
hxg6 {[%emt 0:00:06]} 1-0

[Event "36th European Club Cup 2021"]
[Site "Struga"]
[Date "2021.09.19"]
[Round "2.45"]
[White "Haldorsen, Benjamin"]
[Black "Boskovic, Drasko"]
[Result "0-1"]
[ECO "B45"]
[WhiteElo "2465"]
[BlackElo "2457"]
[Annotator "ChessBase"]
[PlyCount "102"]
[EventDate "2021.09.18"]
[EventType "team-tourn"]
[EventCountry "MKD"]
[SourceTitle "playchess.com"]
[Source "ChessBase"]
[SourceQuality "1"]
[TimeControl "40/5400+30:1800+30"]

1. e4 {[%emt 0:00:17]} c5 {[%emt 0:00:06]} 2. Nf3 {[%emt 0:00:24]} e6 {[%emt 0:
00:42]} 3. d4 {[%emt 0:01:02]} cxd4 {[%emt 0:00:05]} 4. Nxd4 {[%emt 0:00:05]}
Nf6 {[%emt 0:01:00]} 5. Nc3 {[%emt 0:00:18]} Nc6 {[%emt 0:00:29]} 6. Nxc6 {
[%emt 0:01:47]} bxc6 {[%emt 0:00:06]} 7. e5 {[%emt 0:00:10]} Nd5 {[%emt 0:00:
12]} 8. Ne4 {[%emt 0:00:22]} Bb7 {[%emt 0:00:16]} 9. Bd3 {[%emt 0:07:25]} Qc7 {
[%emt 0:01:04]} 10. f4 {[%emt 0:01:06]} Qb6 {[%emt 0:00:06]} 11. a3 {[%emt 0:
02:42]} Be7 {[%emt 0:00:21]} 12. c4 {[%emt 0:10:57]} f5 {[%emt 0:00:10]} 13.
Nf2 {[%emt 0:02:38]} Nc7 {[%emt 0:28:30]} 14. O-O {[%emt 0:15:38]} c5 {[%emt 0:
02:33]} 15. Qe2 {[%emt 0:04:15]} O-O {[%emt 0:02:26]} 16. Be3 {[%emt 0:01:24]}
Qc6 {[%emt 0:02:00]} 17. Nh3 {[%emt 0:01:13]} d5 {[%emt 0:06:00]} 18. Rac1 {
[%emt 0:17:00]} a5 {[%emt 0:08:03]} 19. Ng5 {[%emt 0:07:01]} d4 {[%emt 0:06:42]
} 20. Bd2 {[%emt 0:01:14]} a4 {[%emt 0:00:23]} 21. Rb1 {[%emt 0:00:53]} Rab8 {
[%emt 0:10:34]} 22. Nf3 {[%emt 0:00:32]} Na8 {[%emt 0:03:08]} 23. Rfc1 {
[%emt 0:04:08]} Ba6 {[%emt 0:00:48]} 24. Ba5 {[%emt 0:01:00]} Nb6 {[%emt 0:01:
31]} 25. Qd1 {[%emt 0:01:15]} Rb7 {[%emt 0:02:22]} 26. Nd2 {[%emt 0:02:34]} g5
{[%emt 0:00:51]} 27. Bc2 {[%emt 0:04:29]} Nxc4 {[%emt 0:04:23]} 28. Bxa4 {
[%emt 0:01:51]} Qd5 {[%emt 0:00:07]} 29. Nxc4 {[%emt 0:02:55]} Bxc4 {[%emt 0:
00:53]} 30. b3 {[%emt 0:01:36]} Ba6 {[%emt 0:00:21]} 31. Bd2 {[%emt 0:00:10]}
gxf4 {[%emt 0:00:29]} 32. Bxf4 {[%emt 0:00:28]} Bd8 {[%emt 0:02:30]} 33. Qf3 {
[%emt 0:01:36]} Qxf3 {[%emt 0:03:22]} 34. gxf3 {[%emt 0:00:02]} Rg7+ {[%emt 0:
02:35]} 35. Kf2 {[%emt 0:00:12]} Bh4+ {[%emt 0:03:04]} 36. Bg3 {[%emt 0:00:10]}
Bg5 {[%emt 0:02:11]} 37. f4 {[%emt 0:01:11]} Be7 {[%emt 0:00:06]} 38. b4 {
[%emt 0:01:09]} h5 {[%emt 0:00:08]} 39. bxc5 {[%emt 0:04:32]} h4 {[%emt 0:00:
10]} 40. Rb6 {[%emt 0:00:00]} hxg3+ {[%emt 0:00:00]} 41. hxg3 {[%emt 0:00:57]}
Bc8 {[%emt 0:03:54]} 42. Bb3 {[%emt 0:01:01]} Kf7 {[%emt 0:00:28]} 43. c6 {
[%emt 0:01:23]} Rfg8 {[%emt 0:05:29]} 44. Rh1 {[%emt 0:05:48]} Bc5 {[%emt 0:04:
02]} 45. Rb5 {[%emt 0:01:25]} Rxg3 {[%emt 0:09:11]} 46. Rh7+ {[%emt 0:05:17]}
Kg6 {[%emt 0:00:34]} 47. Rc7 {[%emt 0:02:36]} Rc3 {[%emt 0:00:54]} 48. Rb8 {
[%emt 0:01:04]} d3+ {[%emt 0:00:22]} 49. Kf3 {[%emt 0:03:52]} d2+ {[%emt 0:00:
51]} 50. Ke2 {[%emt 0:00:07]} Ba6+ {[%emt 0:01:06]} 51. Kxd2 {[%emt 0:00:19]}
Rd3+ {[%emt 0:00:06]} 0-1

[Event "36th European Club Cup 2021"]
[Site "Struga"]
[Date "2021.09.19"]
[Round "2.46"]
[White "Tadic, Stefan"]
[Black "Ranaldi, Lucas"]
[Result "1/2-1/2"]
[ECO "C49"]
[WhiteElo "2339"]
[BlackElo "2325"]
[Annotator "NA"]
[PlyCount "117"]
[EventDate "2021.09.18"]
[EventType "team-tourn"]
[EventCountry "MKD"]
[SourceTitle "playchess.com"]
[Source "ChessBase"]
[SourceQuality "1"]
[TimeControl "40/5400+30:1800+30"]

1. e4 {[%emt 0:00:04]} e5 {[%emt 0:00:21]} 2. Nf3 {[%emt 0:01:24]} Nc6 {
[%emt 0:00:07]} 3. Nc3 {[%emt 0:03:10]} Nf6 {[%emt 0:00:13]} 4. Bb5 {[%emt 0:
00:04]} Bb4 {[%emt 0:00:09]} 5. O-O {[%emt 0:00:38]} O-O {[%emt 0:00:09]} 6.
Bxc6 {[%emt 0:00:09]} dxc6 {[%emt 0:00:07]} 7. d3 {[%emt 0:00:07]} Nd7 {
[%emt 0:00:06]} 8. Ne2 {[%emt 0:02:56]} Re8 {[%emt 0:00:06]} 9. Bg5 {[%emt 0:
05:06]} f6 {[%emt 0:00:09]} 10. Be3 {[%emt 0:00:04]} Nf8 {[%emt 0:04:17]} 11.
Nh4 {[%emt 0:02:53]} g6 {[%emt 0:02:47]} 12. c3 {[%emt 0:07:50]} Bd6 {[%emt 0:
12:46]} 13. g3 {[%emt 0:09:07]} Bh3 {[%emt 0:07:01]} 14. Ng2 {[%emt 0:01:32]}
Kg7 {[%emt 0:07:42]} 15. f4 {[%emt 0:08:39]} Qe7 {[%emt 0:08:28]} 16. Qe1 {
[%emt 0:15:43]} Bc5 {[%emt 0:06:27]} 17. Qf2 {[%emt 0:00:35]} Bxe3 {[%emt 0:00:
31]} 18. Qxe3 {[%emt 0:00:03]} c5 {[%emt 0:01:05]} 19. Rf2 {[%emt 0:09:01]}
Bxg2 {[%emt 0:13:08]} 20. Kxg2 {[%emt 0:01:15]} exf4 {[%emt 0:13:48]} 21. Nxf4
{[%emt 0:04:33]} c6 {[%emt 0:00:22]} 22. Re1 {[%emt 0:02:33]} Rad8 {[%emt 0:00:
35]} 23. h4 {[%emt 0:03:59]} Qe5 {[%emt 0:02:28]} 24. h5 {[%emt 0:02:08]} b6 {
[%emt 0:06:48]} 25. Rh1 {[%emt 0:11:19]} Qg5 {[%emt 0:00:50]} 26. Qf3 {[%emt 0:
02:53]} Ne6 {[%emt 0:01:35]} 27. Rh4 {[%emt 0:01:24]} Nxf4+ {[%emt 0:01:57]}
28. Rxf4 {[%emt 0:00:01]} Re6 {[%emt 0:04:13]} 29. hxg6 {[%emt 0:00:34]} hxg6 {
[%emt 0:00:06]} 30. Rg4 {[%emt 0:01:28]} Qh5 {[%emt 0:02:01]} 31. Qf5 {[%emt 0:
01:34]} Qxf5 {[%emt 0:00:17]} 32. exf5 {[%emt 0:00:04]} Re3 {[%emt 0:00:29]}
33. Rxg6+ {[%emt 0:00:33]} Kf7 {[%emt 0:00:17]} 34. Rf3 {[%emt 0:03:28]} Rxf3 {
[%emt 0:02:12]} 35. Kxf3 {[%emt 0:00:01]} Rxd3+ {[%emt 0:00:08]} 36. Ke2 {
[%emt 0:00:03]} Rd8 {[%emt 0:02:40]} 37. Rh6 {[%emt 0:00:11]} Kg7 {[%emt 0:00:
09]} 38. Rg6+ {[%emt 0:00:01]} Kf7 {[%emt 0:00:06]} 39. Rh6 {[%emt 0:00:25]}
Kg7 {[%emt 0:00:26]} 40. Rh2 {[%emt 0:00:00]} c4 {[%emt 0:00:00]} 41. Ke3 {
[%emt 0:05:30]} b5 {[%emt 0:11:33]} 42. g4 {[%emt 0:08:09]} Rd3+ {[%emt 0:03:
35]} 43. Kf4 {[%emt 0:00:16]} Rd1 {[%emt 0:00:20]} 44. Rg2 {[%emt 0:10:18]}
Rf1+ {[%emt 0:04:28]} 45. Kg3 {[%emt 0:01:24]} a5 {[%emt 0:06:15]} 46. Rd2 {
[%emt 0:00:16]} Rb1 {[%emt 0:10:13]} 47. Rd7+ {[%emt 0:00:31]} Kf8 {[%emt 0:00:
00]} 48. Rd6 {[%emt 0:04:51]} Ke7 {[%emt 0:00:00]} 49. Re6+ {[%emt 0:00:01]}
Kf7 {[%emt 0:00:00]} 50. Rxc6 {[%emt 0:00:03]} Rxb2 {[%emt 0:00:00]} 51. Rc7+ {
[%emt 0:00:04]} Kf8 {[%emt 0:00:00]} 52. g5 {[%emt 0:02:31]} fxg5 {[%emt 0:00:
00]} 53. Kg4 {[%emt 0:00:06]} Rxa2 {[%emt 0:00:00]} 54. Kh5 {[%emt 0:01:02]} b4
{[%emt 0:01:44]} 55. cxb4 {[%emt 0:01:36]} axb4 {[%emt 0:00:06]} 56. Rxc4 {
[%emt 0:00:02]} Kf7 {[%emt 0:01:14]} 57. Kxg5 {[%emt 0:00:15]} Rg2+ {[%emt 0:
00:16]} 58. Kf4 {[%emt 0:00:07]} b3 {[%emt 0:00:10]} 59. Rb4 {[%emt 0:00:13]}
1/2-1/2